[Event "*** MasterClass Titled Tuesday Blitz"]
[Site "Chess.com"]
[Date "2017.07.04"]
[Round "2"]
[White "DanielRensch"]
[Black "1e41-0"]
[Result "1-0"]
[WhiteElo "2409"]
[BlackElo "2293"]
[TimeControl "180+2"]
[EndTime "13:22:46 PDT"]
[Termination "DanielRensch won by resignation"]

1. e4 {[%clk 0:03:01.9]} 1... e6 {[%clk 0:03:00.5]} 2. d4 {[%clk 0:03:02.6]}
2... d5 {[%clk 0:03:01.9]} 3. Nc3 {[%clk 0:03:04.5]} 3... Bb4 {[%clk 0:03:01.5]}
4. e5 {[%clk 0:03:05.1]} 4... b6 {[%clk 0:03:03]} 5. a3 {[%clk 0:03:05.8]} 5...
Bf8 {[%clk 0:03:04]} 6. Bb5+ {[%clk 0:03:04.5]} 6... c6 {[%clk 0:03:04]} 7. Ba4
{[%clk 0:03:06]} 7... Ba6 {[%clk 0:03:04.2]} 8. Nce2 {[%clk 0:03:06.2]} 8... Ne7
{[%clk 0:03:03.4]} 9. c3 {[%clk 0:03:07.2]} 9... Bb5 {[%clk 0:03:03.7]} 10. Bc2
{[%clk 0:03:08.4]} 10... c5 {[%clk 0:03:04.7]} 11. a4 {[%clk 0:03:09]} 11... Ba6
{[%clk 0:03:05.3]} 12. Nf3 {[%clk 0:03:10.2]} 12... Nbc6 {[%clk 0:03:05.8]} 13.
O-O {[%clk 0:03:10.4]} 13... Qd7 {[%clk 0:03:00.6]} 14. Bg5 {[%clk 0:03:10.9]}
14... h6 {[%clk 0:03:00.1]} 15. Bh4 {[%clk 0:03:08.6]} 15... Bxe2 {[%clk
0:02:44.6]} 16. Qxe2 {[%clk 0:03:06]} 16... c4 {[%clk 0:02:46.6]} 17. a5 {[%clk
0:02:58.9]} 17... b5 {[%clk 0:02:42.6]} 18. a6 {[%clk 0:02:57.4]} 18... Rb8
{[%clk 0:02:41.2]} 19. b4 {[%clk 0:02:58.2]} 19... Rb6 {[%clk 0:02:40.5]} 20.
Nd2 {[%clk 0:02:57.1]} 20... g6 {[%clk 0:02:26.5]} 21. Bf6 {[%clk 0:02:51.7]}
21... Rg8 {[%clk 0:02:25.9]} 22. g4 {[%clk 0:02:53.6]} 22... Bg7 {[%clk
0:02:25.6]} 23. Bxg7 {[%clk 0:02:40.6]} 23... Rxg7 {[%clk 0:02:27.6]} 24. f4
{[%clk 0:02:42.4]} 24... Kd8 {[%clk 0:02:26.4]} 25. Nf3 {[%clk 0:02:23.8]} 25...
Kc8 {[%clk 0:02:25.5]} 26. h3 {[%clk 0:02:24.5]} 26... Qe8 {[%clk 0:02:18.9]}
27. Qf2 {[%clk 0:02:25.7]} 27... Qg8 {[%clk 0:02:17.4]} 28. Qh4 {[%clk
0:02:25.9]} 28... Qh7 {[%clk 0:01:28.5]} 29. Kf2 {[%clk 0:02:24.5]} 29... Kd7
{[%clk 0:01:20.8]} 30. Rg1 {[%clk 0:02:24.5]} 30... Qg8 {[%clk 0:01:11]} 31.
Qxh6 {[%clk 0:02:14.1]} 31... Rh7 {[%clk 0:01:12.2]} 32. Qg5 {[%clk 0:02:15]}
32... Rxh3 {[%clk 0:01:13.4]} 33. Rh1 {[%clk 0:02:16.4]} 33... Qh8 {[%clk
0:01:08.8]} 34. Kg2 {[%clk 0:02:17.4]} 34... Rxh1 {[%clk 0:01:05.1]} 35. Rxh1
{[%clk 0:02:19.3]} 35... Qg7 {[%clk 0:01:05.7]} 36. Qf6 {[%clk 0:02:09.1]} 36...
Qxf6 {[%clk 0:01:00.5]} 37. exf6 {[%clk 0:02:11]} 37... Nc8 {[%clk 0:01:01.9]}
38. Rh7 {[%clk 0:02:08.7]} 38... Nd6 {[%clk 0:01:02.2]} 39. Ne5+ {[%clk
0:02:07.2]} 39... Nxe5 {[%clk 0:00:56.2]} 40. fxe5 {[%clk 0:02:09.1]} 40... Rxa6
{[%clk 0:00:57.5]} 41. Bxg6 {[%clk 0:02:07.2]} 41... Ra2+ {[%clk 0:00:56.1]} 42.
Kg3 {[%clk 0:02:07.8]} 42... Ne4+ {[%clk 0:00:54.6]} 43. Bxe4 {[%clk 0:02:07.8]}
43... dxe4 {[%clk 0:00:56.5]} 44. Rxf7+ {[%clk 0:02:09]} 44... Kc6 {[%clk
0:00:58]} 45. Kf4 {[%clk 0:02:09.1]} 45... a5 {[%clk 0:00:52.4]} 46. Re7 {[%clk
0:01:59.9]} 46... axb4 {[%clk 0:00:50.5]} 47. Rxe6+ {[%clk 0:02:01]} 47... Kd7
{[%clk 0:00:51.8]} 48. Rd6+ {[%clk 0:02:01.7]} 48... Kc7 {[%clk 0:00:53.3]} 49.
cxb4 {[%clk 0:01:58.6]} 49... c3 {[%clk 0:00:53.8]} 50. d5 {[%clk 0:01:59.9]}
50... Kb7 {[%clk 0:00:34.3]} 51. Rc6 {[%clk 0:01:55.4]} 51... Rd2 {[%clk
0:00:31.7]} 52. Kxe4 {[%clk 0:01:55.8]} 52... c2 {[%clk 0:00:32.5]} 53. f7
{[%clk 0:01:53.7]} 53... Rf2 {[%clk 0:00:32.2]} 54. e6 {[%clk 0:01:54.5]} 54...
Rg2 {[%clk 0:00:29.9]} 55. f8=Q {[%clk 0:01:53.9]} 55... Rxg4+ {[%clk
0:00:31.1]} 56. Ke5 {[%clk 0:01:53]} 56... Rc4 {[%clk 0:00:29.8]} 57. Qe7+
{[%clk 0:01:52.8]} 57... Kb8 {[%clk 0:00:26.7]} 58. Qd8+ {[%clk 0:01:53.7]}
58... Kb7 {[%clk 0:00:27.1]} 59. Rb6+ {[%clk 0:01:53.9]} 1-0

[Event "*** MasterClass Titled Tuesday Blitz"]
[Site "Chess.com"]
[Date "2017.07.04"]
[Round "2"]
[White "grzechu96"]
[Black "Colombiano07"]
[Result "1-0"]
[WhiteElo "2414"]
[BlackElo "2337"]
[TimeControl "180+2"]
[EndTime "13:23:08 PDT"]
[Termination "grzechu96 won by resignation"]

1. e4 {[%clk 0:03:01.9]} 1... e6 {[%clk 0:02:59.4]} 2. d4 {[%clk 0:03:02.6]}
2... d5 {[%clk 0:02:50.7]} 3. Nc3 {[%clk 0:03:03.9]} 3... Bb4 {[%clk 0:02:50.6]}
4. e5 {[%clk 0:03:04.6]} 4... c5 {[%clk 0:02:51.6]} 5. a3 {[%clk 0:03:05.8]}
5... Bxc3+ {[%clk 0:02:52.4]} 6. bxc3 {[%clk 0:03:07.7]} 6... Qa5 {[%clk
0:02:54.1]} 7. Bd2 {[%clk 0:03:08.8]} 7... Qa4 {[%clk 0:02:55.3]} 8. Qg4 {[%clk
0:03:09.8]} 8... g6 {[%clk 0:02:55.9]} 9. Nf3 {[%clk 0:02:57.7]} 9... Ne7 {[%clk
0:02:53.6]} 10. Be2 {[%clk 0:02:40.9]} 10... Qxc2 {[%clk 0:02:53.3]} 11. dxc5
{[%clk 0:02:40.4]} 11... Qe4 {[%clk 0:02:49.6]} 12. Qxe4 {[%clk 0:02:37.8]}
12... dxe4 {[%clk 0:02:50.4]} 13. Ng5 {[%clk 0:02:39.4]} 13... Nd7 {[%clk
0:02:48.8]} 14. Nxe4 {[%clk 0:02:37.9]} 14... Nxe5 {[%clk 0:02:49.2]} 15. Nd6+
{[%clk 0:02:23]} 15... Kf8 {[%clk 0:02:49.1]} 16. Bh6+ {[%clk 0:02:20.7]} 16...
Kg8 {[%clk 0:02:50.1]} 17. Ne8 {[%clk 0:01:55.4]} 17... f5 {[%clk 0:02:40.6]}
18. Bg7 {[%clk 0:01:55.3]} 18... Nf7 {[%clk 0:02:04.4]} 19. Bxh8 {[%clk
0:01:51]} 19... Nxh8 {[%clk 0:02:06.3]} 20. Nc7 {[%clk 0:01:47.6]} 20... Rb8
{[%clk 0:02:06.7]} 21. Rd1 {[%clk 0:01:47.9]} 21... Nf7 {[%clk 0:02:01]} 22. Bc4
{[%clk 0:01:49]} 22... Ng5 {[%clk 0:01:50.3]} 23. Rd8+ {[%clk 0:01:36.7]} 23...
Kg7 {[%clk 0:01:50.6]} 24. Bxe6 {[%clk 0:01:29.8]} 24... Nxe6 {[%clk 0:01:45.1]}
25. Nxe6+ {[%clk 0:01:30.6]} 25... Kf6 {[%clk 0:01:47]} 26. Nf8 {[%clk
0:01:25.3]} 26... Nc6 {[%clk 0:01:46.4]} 27. Nd7+ {[%clk 0:01:15.1]} 27... Bxd7
{[%clk 0:01:43.6]} 28. Rxd7 {[%clk 0:01:17]} 28... Ne5 {[%clk 0:01:35.6]} 29.
Rxh7 {[%clk 0:01:15.1]} 29... Nd3+ {[%clk 0:01:35.1]} 30. Ke2 {[%clk 0:01:08.7]}
30... Nxc5 {[%clk 0:01:35.3]} 31. Rd1 {[%clk 0:01:09.3]} 31... Re8+ {[%clk
0:01:14]} 32. Kf1 {[%clk 0:00:56.2]} 32... Re6 {[%clk 0:00:46.4]} 33. Rc7 {[%clk
0:00:48.2]} 33... Na4 {[%clk 0:00:06.4]} 34. Rxb7 {[%clk 0:00:44.9]} 34... Nxc3
{[%clk 0:00:07.3]} 35. Rc1 {[%clk 0:00:40.4]} 35... Ne2 {[%clk 0:00:13.2]} 36.
Re1 {[%clk 0:00:41.1]} 36... Nd4 {[%clk 0:00:07.3]} 37. Rxe6+ {[%clk 0:00:41.3]}
37... Kxe6 {[%clk 0:00:09.8]} 38. Rxa7 {[%clk 0:00:41.5]} 1-0

[Event "*** MasterClass Titled Tuesday Blitz"]
[Site "Chess.com"]
[Date "2017.07.04"]
[Round "2"]
[White "scrapnel"]
[Black "aspired"]
[Result "1/2-1/2"]
[WhiteElo "2559"]
[BlackElo "2533"]
[TimeControl "180+2"]
[EndTime "13:23:29 PDT"]
[Termination "Game drawn by repetition"]

1. d4 {[%clk 0:03:01.9]} 1... Nf6 {[%clk 0:03:00.2]} 2. Nf3 {[%clk 0:03:02.7]}
2... e6 {[%clk 0:03:01.4]} 3. Bg5 {[%clk 0:03:02.7]} 3... d5 {[%clk 0:02:58.6]}
4. e3 {[%clk 0:03:01.4]} 4... h6 {[%clk 0:02:58.2]} 5. Bh4 {[%clk 0:02:59.8]}
5... b6 {[%clk 0:02:58.9]} 6. c4 {[%clk 0:02:59.2]} 6... Bb7 {[%clk 0:02:58.5]}
7. cxd5 {[%clk 0:02:57.6]} 7... exd5 {[%clk 0:02:54.8]} 8. Nc3 {[%clk
0:02:58.5]} 8... a6 {[%clk 0:02:52.8]} 9. Bd3 {[%clk 0:02:58.7]} 9... Nbd7
{[%clk 0:02:50.6]} 10. O-O {[%clk 0:02:57.2]} 10... Be7 {[%clk 0:02:41.5]} 11.
Ne5 {[%clk 0:02:54.3]} 11... O-O {[%clk 0:02:35]} 12. f4 {[%clk 0:02:48.7]}
12... Ne4 {[%clk 0:02:31.1]} 13. Bxe7 {[%clk 0:02:40]} 13... Qxe7 {[%clk
0:02:33]} 14. Nxe4 {[%clk 0:02:40.6]} 14... dxe4 {[%clk 0:02:31.7]} 15. Bc4
{[%clk 0:02:41.3]} 15... Nxe5 {[%clk 0:02:20.2]} 16. fxe5 {[%clk 0:02:40.2]}
16... b5 {[%clk 0:02:16.9]} 17. Bb3 {[%clk 0:02:31.7]} 17... c5 {[%clk
0:02:17.7]} 18. Qg4 {[%clk 0:02:31.2]} 18... Rad8 {[%clk 0:02:01.9]} 19. Rad1
{[%clk 0:02:30]} 19... Kh8 {[%clk 0:01:53.8]} 20. a3 {[%clk 0:01:57.1]} 20...
cxd4 {[%clk 0:01:29.4]} 21. exd4 {[%clk 0:01:57.9]} 21... Qc7 {[%clk 0:01:15.6]}
22. Qg3 {[%clk 0:01:38.2]} 22... f5 {[%clk 0:00:47.6]} 23. h4 {[%clk 0:01:22.2]}
23... Bd5 {[%clk 0:00:37.8]} 24. Bxd5 {[%clk 0:01:16.4]} 24... Rxd5 {[%clk
0:00:39.7]} 25. Qg6 {[%clk 0:01:17.3]} 25... Qd7 {[%clk 0:00:30.2]} 26. e6
{[%clk 0:01:13.5]} 26... Qd8 {[%clk 0:00:31]} 27. h5 {[%clk 0:01:11]} 27... Rf6
{[%clk 0:00:30.8]} 28. Qg3 {[%clk 0:01:02.5]} 28... Rxe6 {[%clk 0:00:31.8]} 29.
Qe3 {[%clk 0:01:01.3]} 29... Red6 {[%clk 0:00:31.5]} 30. Rf4 {[%clk 0:00:59.4]}
30... Rxd4 {[%clk 0:00:25.7]} 31. Rxd4 {[%clk 0:00:59.9]} 31... Rxd4 {[%clk
0:00:27.6]} 32. Rxf5 {[%clk 0:01:01]} 32... Rd1+ {[%clk 0:00:27]} 33. Kh2 {[%clk
0:00:57.7]} 33... Qh4+ {[%clk 0:00:28.1]} 34. Qh3 {[%clk 0:00:58.1]} 34... Qxh3+
{[%clk 0:00:28.2]} 35. Kxh3 {[%clk 0:00:58.8]} 35... Rd3+ {[%clk 0:00:29.5]} 36.
g3 {[%clk 0:00:55.4]} 36... e3 {[%clk 0:00:28.5]} 37. Re5 {[%clk 0:00:56]} 37...
Rb3 {[%clk 0:00:29.5]} 38. Kg4 {[%clk 0:00:55.2]} 38... Kh7 {[%clk 0:00:31.1]}
39. Kf4 {[%clk 0:00:54.5]} 39... a5 {[%clk 0:00:32.3]} 40. Rxe3 {[%clk
0:00:55.1]} 40... Rxb2 {[%clk 0:00:33.6]} 41. Re5 {[%clk 0:00:54.9]} 41... a4
{[%clk 0:00:31.9]} 42. g4 {[%clk 0:00:54.1]} 42... b4 {[%clk 0:00:31.9]} 43.
axb4 {[%clk 0:00:54.5]} 43... Rxb4+ {[%clk 0:00:33.8]} 44. Kf5 {[%clk
0:00:55.6]} 44... a3 {[%clk 0:00:33.4]} 45. Ra5 {[%clk 0:00:56.8]} 45... Rb3
{[%clk 0:00:34]} 46. Ra8 {[%clk 0:00:57]} 46... Rf3+ {[%clk 0:00:34]} 47. Ke4
{[%clk 0:00:57.8]} 47... Rh3 {[%clk 0:00:35.2]} 48. Kf5 {[%clk 0:00:58.4]} 48...
Re3 {[%clk 0:00:35.9]} 49. Kf4 {[%clk 0:00:59.2]} 49... Rb3 {[%clk 0:00:36.4]}
50. Kf5 {[%clk 0:01:00.1]} 50... Rb5+ {[%clk 0:00:37.2]} 51. Kf4 {[%clk
0:01:00.7]} 51... Rb4+ {[%clk 0:00:38.4]} 52. Kf5 {[%clk 0:01:01.2]} 52... Rb3
{[%clk 0:00:35.1]} 53. Kf4 {[%clk 0:01:00.8]} 53... Rc3 {[%clk 0:00:36.3]} 54.
Kf5 {[%clk 0:01:01.5]} 54... Rh3 {[%clk 0:00:33.3]} 55. Kf4 {[%clk 0:01:01.6]}
55... Rb3 {[%clk 0:00:27.6]} 56. Kf5 {[%clk 0:01:02.4]} 56... Rf3+ {[%clk
0:00:28.2]} 57. Ke4 {[%clk 0:01:03.1]} 57... Rg3 {[%clk 0:00:28.1]} 58. Kf4
{[%clk 0:01:04]} 58... Rb3 {[%clk 0:00:28.6]} 59. Kf5 {[%clk 0:01:06.6]} 1/2-1/2

[Event "*** MasterClass Titled Tuesday Blitz"]
[Site "Chess.com"]
[Date "2017.07.04"]
[Round "2"]
[White "IamSchrodingersCat"]
[Black "BilodeauA"]
[Result "0-1"]
[WhiteElo "2437"]
[BlackElo "2595"]
[TimeControl "180+2"]
[EndTime "13:23:32 PDT"]
[Termination "BilodeauA won by resignation"]

1. e4 {[%clk 0:03:02]} 1... c5 {[%clk 0:02:49.7]} 2. Nf3 {[%clk 0:03:02.3]} 2...
Nc6 {[%clk 0:02:50.2]} 3. d4 {[%clk 0:03:03.1]} 3... cxd4 {[%clk 0:02:52.1]} 4.
Nxd4 {[%clk 0:03:04.6]} 4... Nf6 {[%clk 0:02:53.6]} 5. Nc3 {[%clk 0:03:05.5]}
5... d6 {[%clk 0:02:54.5]} 6. Bg5 {[%clk 0:03:03.4]} 6... e6 {[%clk 0:02:54.8]}
7. Qd2 {[%clk 0:03:02.9]} 7... a6 {[%clk 0:02:55.5]} 8. O-O-O {[%clk 0:03:01.8]}
8... Bd7 {[%clk 0:02:54.2]} 9. f4 {[%clk 0:02:57.8]} 9... b5 {[%clk 0:02:53.1]}
10. a3 {[%clk 0:02:53]} 10... Qb6 {[%clk 0:02:47.1]} 11. e5 {[%clk 0:02:15.9]}
11... dxe5 {[%clk 0:02:32.4]} 12. fxe5 {[%clk 0:01:56.2]} 12... Nxe5 {[%clk
0:02:27]} 13. Qf4 {[%clk 0:01:32.3]} 13... Ng6 {[%clk 0:02:21.6]} 14. Qf3 {[%clk
0:01:31.3]} 14... Rd8 {[%clk 0:02:19]} 15. Bxf6 {[%clk 0:01:29.5]} 15... gxf6
{[%clk 0:02:19.5]} 16. Qxf6 {[%clk 0:01:31.4]} 16... Be7 {[%clk 0:02:12.9]} 17.
Qf3 {[%clk 0:01:23.6]} 17... O-O {[%clk 0:01:57.7]} 18. h4 {[%clk 0:01:10.6]}
18... Bc8 {[%clk 0:01:58.2]} 19. h5 {[%clk 0:00:49.1]} 19... Rxd4 {[%clk
0:01:52.5]} 20. hxg6 {[%clk 0:00:47.8]} 20... fxg6 {[%clk 0:01:48.2]} 21. Qh3
{[%clk 0:00:42.2]} 21... Rxd1+ {[%clk 0:01:44.8]} 22. Nxd1 {[%clk 0:00:44.1]}
22... Rf7 {[%clk 0:01:42.8]} 23. Bd3 {[%clk 0:00:43.2]} 23... Qc5 {[%clk
0:01:40.4]} 24. Kb1 {[%clk 0:00:40.1]} 24... e5 {[%clk 0:01:34.7]} 25. Qh6
{[%clk 0:00:29.4]} 25... Qc6 {[%clk 0:01:21.2]} 26. Nc3 {[%clk 0:00:21.9]} 26...
Qxg2 {[%clk 0:01:14.8]} 27. Ka2 {[%clk 0:00:04.8]} 27... Be6+ {[%clk 0:01:14.4]}
28. b3 {[%clk 0:00:05.7]} 28... Bg5 {[%clk 0:00:35.2]} 29. Be4 {[%clk
0:00:06.5]} 29... Qxe4 {[%clk 0:00:23.3]} 30. Nxe4 {[%clk 0:00:08.4]} 30... Bxh6
{[%clk 0:00:23.5]} 31. Rxh6 {[%clk 0:00:10.3]} 31... Bf5 {[%clk 0:00:24.6]} 32.
Ng5 {[%clk 0:00:09.7]} 32... Rc7 {[%clk 0:00:24.9]} 33. c4 {[%clk 0:00:10.9]}
33... bxc4 {[%clk 0:00:25.3]} 34. bxc4 {[%clk 0:00:12.8]} 34... e4 {[%clk
0:00:24.4]} 35. Rh2 {[%clk 0:00:10.9]} 35... h5 {[%clk 0:00:23.3]} 36. Kb3
{[%clk 0:00:11.3]} 36... Kg7 {[%clk 0:00:22.9]} 37. Kc3 {[%clk 0:00:11.8]} 37...
Kf6 {[%clk 0:00:23.3]} 38. Nh3 {[%clk 0:00:08.9]} 38... Be6 {[%clk 0:00:24.4]}
39. Rf2+ {[%clk 0:00:04]} 39... Ke5 {[%clk 0:00:24.5]} 40. Nf4 {[%clk
0:00:05.9]} 40... Rxc4+ {[%clk 0:00:24.9]} 41. Kd2 {[%clk 0:00:07.5]} 41... Bf5
{[%clk 0:00:24.4]} 42. Ne2 {[%clk 0:00:08.3]} 42... Ra4 {[%clk 0:00:19.3]} 43.
Rf1 {[%clk 0:00:08.4]} 43... Rxa3 {[%clk 0:00:20]} 44. Rb1 {[%clk 0:00:10]}
44... e3+ {[%clk 0:00:21.2]} 0-1

[Event "*** MasterClass Titled Tuesday Blitz"]
[Site "Chess.com"]
[Date "2017.07.04"]
[Round "2"]
[White "cstefan"]
[Black "Zufi1811"]
[Result "1-0"]
[WhiteElo "2290"]
[BlackElo "2382"]
[TimeControl "180+2"]
[EndTime "13:23:32 PDT"]
[Termination "cstefan won on time"]

1. Nf3 {[%clk 0:03:01.9]} 1... Nf6 {[%clk 0:02:58.6]} 2. g3 {[%clk 0:03:01.3]}
2... d5 {[%clk 0:02:58.6]} 3. Bg2 {[%clk 0:03:00]} 3... c6 {[%clk 0:03:00.5]} 4.
d3 {[%clk 0:02:59.6]} 4... Bf5 {[%clk 0:03:01.6]} 5. O-O {[%clk 0:02:57.3]} 5...
h6 {[%clk 0:03:02.3]} 6. Nbd2 {[%clk 0:02:53.5]} 6... e6 {[%clk 0:03:03.6]} 7.
b3 {[%clk 0:02:48.1]} 7... Be7 {[%clk 0:03:03.8]} 8. Bb2 {[%clk 0:02:45.9]} 8...
Nbd7 {[%clk 0:03:04.8]} 9. Qe1 {[%clk 0:02:47.2]} 9... O-O {[%clk 0:03:01.6]}
10. e4 {[%clk 0:02:48.6]} 10... Bh7 {[%clk 0:03:02.1]} 11. Qe2 {[%clk
0:02:42.7]} 11... a5 {[%clk 0:02:56.3]} 12. a4 {[%clk 0:02:40.4]} 12... Qc7
{[%clk 0:02:49.6]} 13. e5 {[%clk 0:02:35.1]} 13... Ne8 {[%clk 0:02:49]} 14. Ne1
{[%clk 0:02:32.2]} 14... Kh8 {[%clk 0:02:37.5]} 15. f4 {[%clk 0:02:29.7]} 15...
b5 {[%clk 0:02:07.4]} 16. Kh1 {[%clk 0:02:21]} 16... bxa4 {[%clk 0:02:02.8]} 17.
bxa4 {[%clk 0:02:16.1]} 17... Nc5 {[%clk 0:01:57]} 18. g4 {[%clk 0:02:04.3]}
18... Rb8 {[%clk 0:01:42.1]} 19. Ba3 {[%clk 0:01:52]} 19... f6 {[%clk
0:01:13.9]} 20. Ndf3 {[%clk 0:01:27.2]} 20... fxe5 {[%clk 0:01:01.3]} 21. Nxe5
{[%clk 0:01:25.2]} 21... Bd6 {[%clk 0:01:01.5]} 22. N1f3 {[%clk 0:01:16.3]}
22... Rxf4 {[%clk 0:00:56.1]} 23. Qe3 {[%clk 0:01:13.8]} 23... Rxf3 {[%clk
0:00:32.4]} 24. Nxf3 {[%clk 0:01:11.8]} 24... Nd7 {[%clk 0:00:19.3]} 25. Bxd6
{[%clk 0:01:09]} 25... Qxd6 {[%clk 0:00:18.4]} 26. Rae1 {[%clk 0:00:56.7]} 26...
Nc7 {[%clk 0:00:16]} 27. g5 {[%clk 0:00:51.8]} 27... h5 {[%clk 0:00:07.8]} 28.
Bh3 {[%clk 0:00:49.4]} 28... Re8 {[%clk 0:00:05.3]} 29. Nh4 {[%clk 0:00:46.6]}
29... g6 {[%clk 0:00:03.7]} 30. Rf7 {[%clk 0:00:43.5]} 30... e5 {[%clk
0:00:05.6]} 31. Rxd7 {[%clk 0:00:39.9]} 31... Qb4 {[%clk 0:00:05.9]} 32. Rf1
{[%clk 0:00:35]} 32... Qxh4 {[%clk 0:00:03.4]} 33. Rff7 {[%clk 0:00:15.8]} 33...
Bg8 {[%clk 0:00:02.3]} 34. Qf3 {[%clk 0:00:10.4]} 1-0

[Event "*** MasterClass Titled Tuesday Blitz"]
[Site "Chess.com"]
[Date "2017.07.04"]
[Round "2"]
[White "Noukii"]
[Black "Goala"]
[Result "1-0"]
[WhiteElo "2588"]
[BlackElo "2327"]
[TimeControl "180+2"]
[EndTime "13:23:45 PDT"]
[Termination "Noukii won by resignation"]

1. d4 {[%clk 0:03:01.9]} 1... e6 {[%clk 0:03:01]} 2. Nf3 {[%clk 0:02:58.6]} 2...
Nf6 {[%clk 0:03:00.9]} 3. c4 {[%clk 0:02:57.8]} 3... c5 {[%clk 0:02:59.2]} 4. d5
{[%clk 0:02:55.6]} 4... exd5 {[%clk 0:03:01.1]} 5. cxd5 {[%clk 0:02:54.3]} 5...
d6 {[%clk 0:03:01.7]} 6. e4 {[%clk 0:02:50.8]} 6... g6 {[%clk 0:02:58.5]} 7. Nc3
{[%clk 0:02:49.4]} 7... a6 {[%clk 0:02:59.6]} 8. Bg5 {[%clk 0:02:45.2]} 8... Bg7
{[%clk 0:02:48.7]} 9. Nd2 {[%clk 0:02:41.6]} 9... O-O {[%clk 0:02:44.1]} 10. a4
{[%clk 0:02:39.3]} 10... Re8 {[%clk 0:02:39.3]} 11. Be2 {[%clk 0:02:37.9]} 11...
Nbd7 {[%clk 0:02:36.4]} 12. O-O {[%clk 0:02:38.3]} 12... h6 {[%clk 0:02:36.7]}
13. Bh4 {[%clk 0:02:39.2]} 13... g5 {[%clk 0:02:38.2]} 14. Bg3 {[%clk
0:02:40.3]} 14... Ne5 {[%clk 0:02:39.8]} 15. h3 {[%clk 0:02:38.4]} 15... Qe7
{[%clk 0:02:32.5]} 16. f4 {[%clk 0:02:34.8]} 16... gxf4 {[%clk 0:02:32.7]} 17.
Bxf4 {[%clk 0:02:36.7]} 17... Ng6 {[%clk 0:02:30.3]} 18. Bg3 {[%clk 0:02:38]}
18... Nd7 {[%clk 0:02:31.8]} 19. Nc4 {[%clk 0:02:37]} 19... Nde5 {[%clk
0:02:32]} 20. Ne3 {[%clk 0:02:37.8]} 20... Qg5 {[%clk 0:02:25.6]} 21. Kf2 {[%clk
0:02:10.6]} 21... f5 {[%clk 0:01:51.7]} 22. Nxf5 {[%clk 0:01:59.4]} 22... Bxf5
{[%clk 0:01:50.9]} 23. exf5 {[%clk 0:02:01.3]} 23... Ng4+ {[%clk 0:01:08.8]} 24.
hxg4 {[%clk 0:01:29.8]} 24... Qe3+ {[%clk 0:01:08.2]} 25. Ke1 {[%clk 0:01:31.4]}
25... Qxg3+ {[%clk 0:01:08.2]} 26. Kd2 {[%clk 0:01:32.8]} 26... Qe3+ {[%clk
0:00:19.6]} 27. Kc2 {[%clk 0:01:14.1]} 27... Bxc3 {[%clk 0:00:19.4]} 28. bxc3
{[%clk 0:01:16]} 28... Qxe2+ {[%clk 0:00:15.7]} 29. Qxe2 {[%clk 0:01:16.8]}
29... Rxe2+ {[%clk 0:00:17.6]} 30. Kd3 {[%clk 0:01:18.7]} 30... Rxg2 {[%clk
0:00:14.4]} 31. fxg6 {[%clk 0:01:20.2]} 31... Rxg4 {[%clk 0:00:15.4]} 32. Rf6
{[%clk 0:01:21]} 32... Rf8 {[%clk 0:00:13.5]} 33. Raf1 {[%clk 0:01:12.4]} 33...
Rxf6 {[%clk 0:00:13.4]} 34. Rxf6 {[%clk 0:01:14.3]} 34... h5 {[%clk 0:00:14.9]}
35. Rxd6 {[%clk 0:01:12.6]} 35... h4 {[%clk 0:00:15.8]} 36. Re6 {[%clk
0:01:14.1]} 36... h3 {[%clk 0:00:16.3]} 37. Re1 {[%clk 0:01:15.3]} 37... c4+
{[%clk 0:00:15.6]} 38. Ke3 {[%clk 0:01:14.7]} 38... Rxg6 {[%clk 0:00:14.3]} 39.
Kd4 {[%clk 0:01:15.6]} 39... h2 {[%clk 0:00:12]} 40. Rh1 {[%clk 0:01:16.2]}
40... Rh6 {[%clk 0:00:13.3]} 41. Kxc4 {[%clk 0:01:17.3]} 41... Kf8 {[%clk
0:00:14.8]} 42. a5 {[%clk 0:01:17.2]} 42... Ke7 {[%clk 0:00:15.3]} 43. Kc5
{[%clk 0:01:18.8]} 43... Kd7 {[%clk 0:00:16.1]} 44. c4 {[%clk 0:01:20.5]} 44...
Rh4 {[%clk 0:00:15.6]} 45. Kb6 {[%clk 0:01:21.1]} 45... Kc8 {[%clk 0:00:09.3]}
46. c5 {[%clk 0:01:17.3]} 46... Rb4+ {[%clk 0:00:08.1]} 47. Ka7 {[%clk
0:01:18.5]} 47... Rh4 {[%clk 0:00:08.5]} 48. d6 {[%clk 0:01:13.1]} 48... Rh8
{[%clk 0:00:07.9]} 49. d7+ {[%clk 0:01:00.3]} 49... Kxd7 {[%clk 0:00:06.1]} 50.
Kxb7 {[%clk 0:01:00.9]} 50... Ke6 {[%clk 0:00:02.9]} 51. c6 {[%clk 0:01:00.8]}
51... Kd6 {[%clk 0:00:03.1]} 52. c7 {[%clk 0:01:01.4]} 52... Kc5 {[%clk
0:00:02.6]} 53. c8=Q+ {[%clk 0:01:01.5]} 53... Rxc8 {[%clk 0:00:02]} 54. Kxc8
{[%clk 0:01:03.4]} 54... Kb5 {[%clk 0:00:03.4]} 55. Rxh2 {[%clk 0:01:04.6]} 1-0